bitfinex/quotes_SOLUSD_20241121
["timestamp","ask_amount","ask_price","bid_price","bid_amount"]
[1732204050014,30.44521417,247.98,247.88,30.44521417]
[1732204050208,30.44521417,247.96,247.87,23.776884]
[1732204050417,0.92488489,247.95,247.89,23.776884]
[1732204050614,0.92488489,247.95,247.91,23.776884]
[1732204050800,0.92488489,247.95,247.88,30.44521417]
[1732204051001,0.92488489,247.95,247.89,23.776884]
[1732204051201,0.92488489,247.95,247.93,23.776884]
[1732204051818,0.92488489,247.95,247.91,23.776884]
[1732204052604,0.42488489,247.95,247.91,23.776884]
[1732204053004,0.42488489,247.95,247.93,23.776884]
[1732204053809,0.5,248.41,248.1,0.5]
[1732204054021,30.44521417,248.27,248.16,30.44521417]
[1732204054225,30.44521417,248.27,248.14,30.44521417]
[1732204054405,30.44521417,248.27,248.15,23.776884]
[1732204054830,30.44521417,248.27,248.14,30.44521417]
[1732204055013,30.44521417,248.25,248.14,30.44521417]
[1732204056229,34.47341417,248.25,248.14,30.44521417]
[1732204056418,30.44521417,248.41,248.25,23.776884]
[1732204056618,30.44521417,248.41,248.3,30.44521417]
[1732204056931,30.44521417,248.39,248.26,30.44521417]
[1732204057138,30.44521417,248.37,248.26,30.44521417]
[1732204057310,4.0258,248.4,248.26,30.44521417]
[1732204057518,30.44521417,248.51,248.38,30.44521417]
[1732204057714,4.023,248.57,248.28,30.94521417]
[1732204057715,30.44521417,248.53,248.4,30.44521417]
[1732204058020,30.44521417,248.52,248.39,30.44521417]
[1732204058333,30.44521417,248.5,248.38,23.776884]
[1732204058518,30.44521417,248.46,248.36,23.776884]
[1732204058719,30.44521417,248.48,248.36,23.776884]
[1732204059317,30.44521417,248.48,248.37,30.44521417]
[1732204059633,30.44521417,248.48,248.38,23.776884]
[1732204059938,30.44521417,248.44,248.32,20.0]
[1732204060125,30.44521417,248.44,248.33,30.44521417]
[1732204060818,30.44521417,248.46,248.35,30.44521417]
[1732204061031,4.0234,248.54,248.37,30.44521417]
[1732204061350,30.44521417,248.47,248.37,30.44521417]
[1732204061642,30.44521417,248.49,248.38,23.776884]
[1732204061811,30.44521417,248.47,248.35,30.44521417]
[1732204062014,0.5,248.54,248.29,20.0]
[1732204062015,30.44521417,248.45,248.33,30.44521417]
[1732204062234,30.44521417,248.39,248.28,30.44521417]
[1732204062733,30.44521417,248.41,248.3,30.44521417]
[1732204062944,30.44521417,248.39,248.3,30.44521417]
[1732204063122,30.44521417,248.39,248.28,30.44521417]
[1732204063318,30.44521417,248.41,248.3,30.44521417]
[1732204063933,30.44521417,248.41,248.17,0.5]
[1732204063934,30.44521417,248.39,248.28,30.44521417]
[1732204064143,30.44521417,248.41,248.3,30.44521417]
[1732204064444,34.47061417,248.43,248.32,30.44521417]
[1732204064647,30.44521417,248.41,248.3,30.44521417]
[1732204064823,30.44521417,248.39,248.28,30.44521417]
[1732204065219,30.44521417,248.41,248.3,30.44521417]
[1732204065441,30.44521417,248.43,248.32,30.44521417]
[1732204065825,30.44521417,248.41,248.3,30.44521417]
[1732204066425,30.44521417,248.39,248.28,30.44521417]
[1732204066734,30.44521417,248.49,248.38,30.44521417]
[1732204067037,30.44521417,248.39,248.26,30.44521417]
[1732204067221,30.44521417,248.44,248.33,30.44521417]
[1732204067422,30.44521417,248.42,248.25,29.2534]
[1732204067739,30.44521417,248.42,248.3,30.44521417]
[1732204067951,30.44521417,248.44,248.32,30.44521417]
[1732204068119,30.44521417,248.46,248.34,30.44521417]
[1732204068320,30.44521417,248.44,248.34,30.44521417]
[1732204068733,30.44521417,248.44,248.32,30.44521417]
[1732204069328,30.44521417,248.46,248.34,30.44521417]
[1732204069738,30.44521417,248.46,248.35,23.776884]
[1732204069955,1.0,248.58,248.35,23.776884]
[1732204069956,30.44521417,248.48,248.38,30.44521417]
[1732204070451,30.44521417,248.5,248.38,30.44521417]
[1732204071435,30.44521417,248.5,248.35,23.776884]
[1732204071627,2.88747614,248.64,248.49,23.776884]
[1732204071828,30.44521417,248.64,248.54,30.44521417]
[1732204072235,30.44521417,248.58,248.45,30.6654]
[1732204072439,30.44521417,248.62,248.51,30.44521417]
[1732204072621,30.44521417,248.59,248.48,30.44521417]
[1732204072826,30.44521417,248.62,248.52,30.44521417]
[1732204073121,30.44521417,248.62,248.5,30.44521417]
[1732204073326,30.44521417,248.64,248.52,30.44521417]
[1732204073734,4.021,248.69,248.54,30.44521417]
[1732204073934,30.44521417,248.65,248.54,30.44521417]
[1732204075139,30.44521417,248.67,248.56,30.44521417]
[1732204075827,10.0487,248.79,248.48,11.5821]
[1732204075828,30.44521417,248.71,248.62,30.44521417]
[1732204076232,4.0196,248.78,248.62,30.44521417]
[1732204076445,30.44521417,248.71,248.6,30.44521417]
[1732204076652,30.44521417,248.71,248.62,30.44521417]
[1732204076827,30.44521417,248.77,248.67,30.44521417]
[1732204077149,4.0192,248.8,248.65,30.44521417]
[1732204077150,30.44521417,248.76,248.65,30.44521417]
[1732204077448,0.74729804,248.75,248.67,30.44521417]
[1732204077651,0.74729804,248.75,248.73,30.44521417]
[1732204077946,0.74729804,248.75,248.71,30.44521417]
[1732204078151,0.74729804,248.75,248.73,30.44521417]
[1732204078845,0.74729804,248.75,248.71,74.22209817]
[1732204079036,0.74729804,248.75,248.71,30.44521417]
[1732204079527,0.74729804,248.75,248.73,30.44521417]
[1732204080448,0.74729804,248.75,248.72,23.776884]
[1732204080449,0.74729804,248.75,248.71,54.22209817]
[1732204080628,18.60121572,248.78,248.7,11.7875]
[1732204080825,18.60121572,248.8,248.7,11.7875]
[1732204081646,18.60121572,248.8,248.71,18.60121572]
[1732204082336,18.60121572,248.8,248.7,11.7875]
[1732204082529,18.60121572,248.76,248.67,18.60121572]
[1732204082729,18.60121572,248.74,248.63,18.60121572]
[1732204082942,18.60121572,248.68,248.61,42.4232]
[1732204083147,20.0,248.84,248.63,18.60121572]
[1732204083452,18.60121572,248.68,248.58,18.60121572]
[1732204083755,18.60121572,248.68,248.52,12.1906]
[1732204083951,18.60121572,248.62,248.52,30.79181572]
[1732204084167,18.60121572,248.68,248.59,18.60121572]
[1732204084451,18.60121572,248.72,248.61,18.60121572]
[1732204084654,4.0191,248.81,248.52,12.1906]
[1732204084655,18.60121572,248.66,248.52,12.1906]
[1732204084846,18.60121572,248.61,248.52,30.79181572]
[1732204085039,18.60121572,248.57,248.48,18.60121572]
[1732204086349,11.9892,248.82,248.55,18.60121572]
[1732204086657,30.23430426,248.75,248.65,30.23430426]
[1732204087033,30.23430426,248.69,248.59,30.23430426]
[1732204087231,30.23430426,248.69,248.6,20.0]
[1732204087735,4.5191,248.81,248.6,20.0]
[1732204087736,30.23430426,248.71,248.61,30.23430426]
[1732204088861,30.23430426,248.73,248.63,30.23430426]
[1732204089055,30.23430426,248.71,248.6,20.0]
[1732204089260,30.23430426,248.71,248.61,30.23430426]
[1732204089552,30.23430426,248.73,248.63,30.23430426]
[1732204089742,30.23430426,248.72,248.61,30.23430426]
[1732204089946,30.23430426,248.7,248.61,30.23430426]
[1732204090149,30.23430426,248.72,248.63,30.23430426]
[1732204090336,30.23430426,248.74,248.63,30.23430426]
[1732204090733,30.23430426,248.72,248.61,30.23430426]
[1732204090939,30.23430426,248.74,248.63,30.23430426]
[1732204091139,34.25450426,248.74,248.63,30.23430426]
[1732204091436,4.0189,248.82,248.57,0.5]
[1732204091642,20.0907,248.88,248.72,30.23430426]
[1732204091643,30.23430426,248.84,248.72,30.23430426]
[1732204092051,30.23430426,248.86,248.76,30.23430426]
[1732204092252,30.23430426,248.86,248.64,30.23430426]
[1732204092253,34.25170426,248.92,248.8,30.23430426]
[1732204092463,30.23430426,248.94,248.84,30.23430426]
[1732204092664,30.23430426,248.9,248.8,30.23430426]
[1732204092964,30.23430426,248.88,248.78,30.23430426]
[1732204093362,34.25240426,248.88,248.76,30.23430426]
[1732204093860,30.23430426,248.88,248.78,30.23430426]
[1732204094158,30.23430426,248.88,248.77,30.23430426]
[1732204094461,30.23430426,248.84,248.73,30.23430426]
[1732204094845,34.1419,248.96,248.82,30.23430426]
[1732204094846,4.0167,248.96,248.82,30.23430426]
[1732204095036,30.23430426,248.91,248.82,30.23430426]
[1732204095236,30.23430426,248.93,248.82,30.23430426]
[1732204095440,30.23430426,248.93,248.84,30.23430426]
[1732204095839,30.23430426,248.91,248.82,30.23430426]
[1732204096044,50.0,248.88,248.82,30.23430426]
[1732204096245,50.0,248.88,248.7,5.28189248]
[1732204096246,50.0,248.88,248.8,30.23430426]
[1732204097143,50.0,248.88,248.78,30.23430426]
[1732204097343,50.0,248.88,248.8,30.23430426]
[1732204097662,30.23430426,248.81,248.7,30.23430426]
[1732204097865,30.23430426,248.83,248.75,30.23430426]
[1732204098161,80.23430426,248.88,248.79,30.23430426]
[1732204098552,30.23430426,248.86,248.75,30.23430426]
[1732204098745,30.23430426,248.82,248.73,30.23430426]
[1732204098954,30.23430426,248.84,248.75,30.23430426]
[1732204099155,30.23430426,248.84,248.73,30.23430426]
[1732204099543,30.23430426,248.82,248.73,30.23430426]
[1732204099843,30.23430426,248.84,248.73,30.23430426]
[1732204100046,30.23430426,248.82,248.73,30.23430426]
[1732204100559,30.23430426,248.82,248.71,30.23430426]
[1732204100864,84.25240426,248.88,248.67,30.23430426]
[1732204100865,30.23430426,248.77,248.67,30.23430426]
[1732204101065,30.23430426,248.77,248.63,2.9424522]
[1732204101066,30.23430426,248.75,248.65,30.23430426]
[1732204102661,30.23430426,248.73,248.63,30.23430426]
[1732204102872,30.23430426,248.77,248.67,30.23430426]
[1732204103163,30.23430426,248.79,248.69,30.23430426]
[1732204103662,30.23430426,248.77,248.67,30.23430426]
[1732204103865,30.23430426,248.75,248.63,30.23430426]
[1732204104072,30.23430426,248.75,248.58,42.894]
[1732204104073,30.23430426,248.71,248.61,30.23430426]
[1732204104651,14.0641,248.86,248.7,30.23430426]
[1732204104854,30.23430426,248.8,248.7,30.23430426]
[1732204105660,34.25370426,248.8,248.7,30.23430426]
[1732204106043,34.25370426,248.8,248.64,30.23430426]
[1732204106255,30.23430426,248.74,248.63,30.23430426]
[1732204106467,30.23430426,248.72,248.63,30.23430426]
[1732204106650,18.60953036,248.73,248.62,18.60953036]
[1732204106851,18.60953036,248.7,248.6,18.60953036]
[1732204107160,18.60953036,248.7,248.52,19.10953036]
[1732204107161,18.60953036,248.74,248.63,18.60953036]
[1732204107557,22.62983036,248.74,248.63,18.60953036]
[1732204107762,22.62953036,248.76,248.54,0.5]
[1732204107944,18.60953036,248.76,248.66,18.60953036]
[1732204108264,18.60953036,248.78,248.68,18.60953036]
[1732204108447,22.62923036,248.78,248.68,18.60953036]
[1732204108650,18.60953036,248.8,248.7,18.60953036]
[1732204108951,22.62883036,248.8,248.7,18.60953036]
[1732204109153,22.62853036,248.82,248.72,18.60953036]
[1732204109354,18.60953036,248.84,248.72,18.60953036]
[1732204109553,18.60953036,248.84,248.74,18.60953036]
[1732204109760,22.62823036,248.84,248.74,18.60953036]
[1732204110074,18.60953036,248.82,248.72,18.60953036]
[1732204110272,22.62823036,248.84,248.74,18.60953036]
[1732204110573,50.0,248.88,248.82,18.60953036]
[1732204111248,50.0,248.88,248.84,18.60953036]
[1732204111466,50.0,248.88,248.86,18.60953036]
[1732204112680,50.0,248.88,248.87,42.38641436]
[1732204113055,49.89600903,248.88,248.87,42.38641436]
[1732204113355,5.228,248.99,248.87,73.09281436]
[1732204113557,5.228,248.99,248.98,18.60953036]
[1732204114360,5.228,248.99,248.95,18.60953036]
[1732204114565,5.228,248.99,248.93,18.60953036]
[1732204114955,16.5312,248.98,248.65,0.5]
[1732204115153,18.60953036,248.92,248.83,18.60953036]
[1732204115354,18.60953036,248.94,248.83,18.60953036]
[1732204115875,18.60953036,248.92,248.83,18.60953036]
[1732204116170,18.60953036,248.94,248.83,18.60953036]
[1732204116477,5.228,248.99,248.87,18.60953036]
[1732204116478,22.62613036,248.97,248.87,18.60953036]
[1732204116667,18.60953036,248.91,248.79,18.60953036]
[1732204116969,18.60953036,248.83,248.71,18.60953036]
[1732204117177,18.60953036,248.8,248.69,18.60953036]
[1732204117378,18.60953036,248.8,248.71,18.60953036]
[1732204117555,18.60953036,248.8,248.69,18.60953036]
[1732204117765,18.60953036,248.81,248.71,18.60953036]
[1732204118063,18.60953036,248.83,248.73,18.60953036]
[1732204118254,18.60953036,248.81,248.71,18.60953036]
[1732204118752,1.0,248.94,248.66,11.8775]
[1732204118753,18.60953036,248.83,248.73,18.60953036]
[1732204118949,18.60953036,248.87,248.77,18.60953036]
[1732204119154,18.60953036,248.89,248.79,18.60953036]
[1732204120366,18.60953036,248.87,248.77,18.60953036]
[1732204120568,18.60953036,248.81,248.66,11.8775]
[1732204120881,18.60953036,248.88,248.66,11.8775]
[1732204120882,18.60953036,248.76,248.66,30.48703036]
[1732204121271,30.230644,248.76,248.67,30.230644]
[1732204122365,30.230644,248.76,248.66,11.3775]
[1732204122967,30.230644,248.72,248.61,30.230644]
[1732204123172,30.230644,248.72,248.63,30.230644]
[1732204123776,30.230644,248.7,248.61,30.230644]
[1732204124082,30.230644,248.7,248.6,30.230644]
[1732204124268,4.0189,248.82,248.52,61.029744]
[1732204124269,30.230644,248.72,248.62,30.230644]
[1732204124467,30.230644,248.74,248.64,30.230644]
[1732204124665,30.230644,248.76,248.66,30.230644]
[1732204124872,30.230644,248.78,248.68,30.230644]
[1732204125191,30.230644,248.8,248.7,30.230644]
[1732204126890,4.0189,248.83,248.75,30.230644]
[1732204127066,30.230644,248.87,248.77,30.230644]
[1732204127267,13.1859,248.94,248.64,30.230644]
[1732204127268,4.0184,248.86,248.79,30.230644]
[1732204127691,4.0176,248.9,248.81,30.230644]
[1732204128076,4.0176,248.9,248.79,30.230644]
[1732204128387,30.230644,248.87,248.77,30.230644]
[1732204128688,30.230644,248.87,248.75,30.230644]
[1732204129068,30.230644,248.89,248.77,30.230644]
[1732204129268,30.230644,248.89,248.79,30.230644]
[1732204129578,4.0176,248.9,248.83,30.230644]
[1732204129763,4.0173,248.92,248.83,30.230644]
[1732204130261,4.0173,248.92,248.76,30.230644]
[1732204130262,4.0171,248.94,248.87,30.230644]
[1732204130470,4.0158,249.02,248.93,30.230644]
[1732204130668,30.230644,249.05,248.95,30.230644]
[1732204130669,4.0154,249.04,248.95,30.230644]
[1732204131184,4.0153,249.05,248.97,30.230644]
[1732204131892,41.8756,249.12,248.97,30.230644]
[1732204132066,72.106244,249.12,248.97,30.230644]
[1732204132474,63.892144,249.12,248.97,30.230644]
[1732204132676,30.230644,249.14,248.97,30.230644]
[1732204132887,30.230644,249.16,248.98,23.776884]
[1732204133100,4.0141,249.13,248.97,30.230644]
[1732204133392,4.0142,249.12,248.97,30.230644]
[1732204133684,4.014,249.13,248.97,30.230644]
[1732204134281,30.230644,249.14,248.98,23.776884]
[1732204134667,30.230644,249.12,248.97,30.230644]
[1732204135465,30.230644,249.08,248.97,30.230644]
[1732204135667,30.230644,249.1,248.97,30.230644]
[1732204135864,30.230644,249.12,248.97,30.230644]
[1732204136287,34.244844,249.12,248.97,30.230644]
[1732204136768,30.230644,249.12,248.97,30.230644]
[1732204136969,4.228,248.99,248.97,30.230644]
[1732204139675,4.228,248.99,248.98,50.230644]
[1732204140071,4.228,248.99,248.98,74.007528]
[1732204140484,4.228,248.99,248.98,43.776884]
[1732204141092,4.228,248.99,248.98,20.0]
[1732204142002,4.228,248.99,248.97,30.230644]
[1732204142903,4.228,248.99,248.98,18.55496122]
[1732204145295,4.228,248.99,248.96,18.55496122]
[1732204145803,4.228,248.99,248.98,18.55496122]
[1732204146184,18.55496122,249.07,248.98,18.55496122]
[1732204146185,18.55496122,249.07,249.0,0.772]
[1732204146904,18.55496122,249.03,249.0,0.772]
[1732204147199,18.55496122,249.07,249.0,0.772]
[1732204147374,18.55496122,249.09,249.0,19.32696122]
[1732204147576,4.0141,249.13,249.02,18.55496122]
[1732204147577,18.55496122,249.13,249.02,18.55496122]
[1732204147797,18.55496122,249.15,249.04,18.55496122]
[1732204148009,18.55496122,249.13,249.04,18.55496122]
[1732204148578,18.55496122,249.13,249.02,18.55496122]
[1732204148895,18.55496122,249.11,249.0,19.32696122]
[1732204149079,18.55496122,249.08,249.0,0.772]
[1732204149282,0.5,249.17,249.0,0.772]
[1732204149586,18.55496122,249.05,249.0,0.772]
[1732204149790,18.55496122,249.07,249.0,0.772]
[1732204150002,20.0,249.17,249.0,19.32696122]
[1732204150180,18.55496122,249.09,249.0,0.772]
[1732204150705,18.55496122,249.11,249.0,19.32696122]
[1732204150880,4.0131,249.18,249.06,18.55496122]
[1732204151088,2.86064108,249.21,249.1,18.55496122]
[1732204151386,18.55496122,249.29,249.18,18.55496122]
[1732204152007,18.55496122,249.29,249.19,23.776884]
[1732204152179,13.0268,249.38,249.24,18.55496122]
[1732204152380,18.55496122,249.32,249.22,18.55496122]
[1732204152692,18.55496122,249.36,249.26,18.55496122]
[1732204153383,18.55496122,249.34,249.24,18.55496122]
[1732204153784,18.55496122,249.29,249.19,18.55496122]
[1732204154107,18.55496122,249.31,249.21,18.55496122]
[1732204155100,4.0097,249.39,249.21,18.55496122]
[1732204155399,18.55496122,249.34,249.24,18.55496122]
[1732204155782,18.55496122,249.32,249.22,18.55496122]
[1732204155979,18.55496122,249.35,249.24,18.55496122]
[1732204156191,4.0091,249.43,249.27,18.55496122]
[1732204156393,4.0091,249.43,249.19,12.6787]
[1732204156394,18.55496122,249.33,249.23,18.55496122]
[1732204156618,4.5091,249.43,249.21,18.55496122]
[1732204156619,18.55496122,249.31,249.21,18.55496122]
[1732204156908,18.55496122,249.27,249.17,18.55496122]
[1732204157086,18.55496122,249.25,249.15,18.55496122]
[1732204157497,0.5,249.36,249.19,18.55496122]
[1732204157704,14.0319,249.43,249.24,18.55496122]
[1732204157705,18.55496122,249.35,249.24,18.55496122]
[1732204157988,4.0091,249.43,249.26,18.55496122]
[1732204158198,18.55496122,249.38,249.26,18.55496122]
[1732204158503,18.55496122,249.38,249.16,1.0]
[1732204158504,0.5,249.45,249.3,18.55496122]
[1732204158705,18.55496122,249.4,249.3,18.55496122]
[1732204158896,18.55496122,249.4,249.28,18.55496122]
[1732204159887,0.5,249.6,249.39,18.55496122]
[1732204160101,18.55496122,249.53,249.42,18.55496122]
[1732204160286,18.55496122,249.53,249.4,18.55496122]
[1732204160481,10.0162,249.6,249.42,18.55496122]
[1732204160711,18.55496122,249.57,249.44,18.55496122]
[1732204160885,18.55496122,249.57,249.46,18.55496122]
[1732204161085,16.90834938,249.64,249.47,18.55496122]
[1732204161287,18.55496122,249.62,249.49,18.55496122]
[1732204161497,18.55496122,249.62,249.37,6.16105359]
[1732204161498,18.55496122,249.58,249.45,18.55496122]
[1732204161700,4.5057,249.64,249.43,18.55496122]
[1732204161701,18.55496122,249.54,249.43,18.55496122]
[1732204161901,18.55496122,249.54,249.39,18.55496122]
[1732204161902,18.55496122,249.5,249.39,18.55496122]
[1732204162407,18.55496122,249.5,249.3,4.70490743]
[1732204162408,18.55496122,249.54,249.43,18.55496122]
[1732204162707,30.04813666,249.54,249.43,30.04813666]
[1732204163009,30.04813666,249.5,249.39,30.04813666]
[1732204164005,30.04813666,249.46,249.37,30.04813666]
[1732204164211,30.04813666,249.46,249.24,63.03373666]
[1732204164212,30.04813666,249.44,249.33,30.04813666]
[1732204164801,30.04813666,249.42,249.33,30.04813666]
[1732204165002,30.04813666,249.42,249.31,30.04813666]
[1732204166310,30.04813666,249.42,249.24,75.55583666]
[1732204166311,4.0094,249.41,249.25,30.04813666]
[1732204166515,30.04813666,249.39,249.29,30.04813666]
[1732204166690,30.04813666,249.35,249.23,30.04813666]
[1732204166891,30.04813666,249.35,249.16,13.0221]
[1732204166892,30.04813666,249.31,249.21,30.04813666]
[1732204167100,30.04813666,249.31,249.16,13.0221]
[1732204167101,30.04813666,249.29,249.19,30.04813666]
[1732204167391,0.5,249.36,249.21,30.04813666]
[1732204167392,30.04813666,249.31,249.21,30.04813666]
[1732204167698,30.04813666,249.28,249.18,30.04813666]
[1732204167888,30.04813666,249.34,249.12,30.54813666]
[1732204168089,32.9083,249.46,249.12,30.54813666]
[1732204168090,30.04813666,249.38,249.28,30.04813666]
[1732204169110,4.0097,249.4,249.24,30.04813666]
[1732204169111,30.04813666,249.34,249.24,30.04813666]
[1732204169534,30.04813666,249.32,249.22,30.04813666]
[1732204169695,0.5,249.38,249.22,30.04813666]
[1732204169895,30.04813666,249.35,249.24,30.04813666]
[1732204170090,30.04813666,249.37,249.26,30.04813666]
[1732204170308,13.5243,249.45,249.24,30.04813666]
[1732204170309,30.04813666,249.35,249.24,30.04813666]
[1732204170611,30.04813666,249.33,249.24,30.04813666]
[1732204170911,30.04813666,249.35,249.24,30.04813666]
[1732204171289,30.04813666,249.37,249.26,30.04813666]
[1732204171496,30.04813666,249.33,249.22,30.04813666]
[1732204172202,30.04813666,249.31,249.22,30.04813666]
[1732204172505,30.04813666,249.31,249.2,30.04813666]
[1732204172812,30.04813666,249.23,249.14,30.04813666]
[1732204173019,30.04813666,249.23,249.12,30.04813666]
[1732204173204,30.04813666,249.27,249.16,30.04813666]
[1732204173516,30.04813666,249.33,249.22,30.04813666]
[1732204173699,30.04813666,249.31,249.22,30.04813666]
[1732204173897,30.04813666,249.26,249.15,30.04813666]
[1732204174215,0.5,249.28,249.07,12.8454]
[1732204174391,4.0117,249.27,249.07,12.8454]
[1732204175201,30.04813666,249.22,249.12,30.04813666]
[1732204175595,30.04813666,249.16,249.06,30.04813666]
[1732204175795,30.04813666,249.24,249.02,30.04813666]
[1732204175796,30.04813666,249.12,249.02,30.04813666]
[1732204176517,30.04813666,249.14,249.02,30.04813666]
[1732204176819,30.04813666,249.14,249.04,30.04813666]
[1732204176997,30.04813666,249.1,249.0,30.82013666]
[1732204177608,30.04813666,249.08,249.0,0.772]
[1732204177817,14.046,249.18,249.0,0.772]
[1732204177818,30.04813666,249.06,249.0,0.772]
[1732204178326,30.04813666,249.08,249.0,0.772]
[1732204178500,30.04813666,249.1,249.0,30.82013666]
[1732204178901,34.06263666,249.1,249.0,30.82013666]
[1732204179193,30.04813666,249.1,249.0,30.82013666]
[1732204179397,90.43005457,249.33,249.0,30.82013666]
[1732204179398,4.0125,249.22,249.09,30.04813666]
[1732204179595,30.04813666,249.19,249.09,30.04813666]
[1732204179808,30.04813666,249.17,249.07,30.04813666]
[1732204180021,30.04813666,249.19,249.07,30.04813666]
[1732204180220,30.04813666,249.19,249.0,30.82013666]
[1732204180221,30.04813666,249.19,249.09,30.04813666]
[1732204180428,30.04813666,249.23,249.13,30.04813666]
[1732204181106,30.04813666,249.23,249.08,23.776884]
[1732204181107,30.04813666,249.2,249.09,30.04813666]
[1732204181309,30.04813666,249.2,249.08,23.776884]
[1732204181310,30.04813666,249.18,249.08,23.776884]
[1732204181527,30.04813666,249.18,249.1,23.776884]
[1732204181695,30.04813666,249.18,249.07,30.04813666]
[1732204181898,30.04813666,249.11,249.01,30.04813666]
[1732204182095,30.04813666,249.11,249.0,0.772]
[1732204182096,30.04813666,249.16,249.05,30.04813666]
[1732204182800,30.04813666,249.14,249.03,30.04813666]
[1732204183209,30.04813666,249.09,249.0,0.772]
[1732204183413,30.04813666,249.09,249.0,30.82013666]
[1732204183620,30.04813666,249.11,249.0,30.82013666]
[1732204184013,30.04813666,249.08,249.0,0.772]
[1732204184218,30.04813666,249.12,249.0,30.82013666]
[1732204184719,30.04813666,249.16,249.06,30.04813666]
[1732204185102,31.7057,249.27,249.09,30.04813666]
[1732204185103,30.04813666,249.18,249.09,30.04813666]
[1732204185306,30.04813666,249.22,249.12,23.776884]
[1732204185517,7.0856232,249.44,249.27,0.5]
[1732204185720,30.04813666,249.48,249.37,30.04813666]
[1732204185934,30.04813666,249.46,249.35,30.04813666]
[1732204186112,30.04813666,249.5,249.37,30.04813666]
[1732204186306,30.04813666,249.5,249.39,30.04813666]
[1732204186711,30.04813666,249.48,249.39,30.04813666]
[1732204187224,30.04813666,249.46,249.35,30.04813666]
[1732204187426,30.04813666,249.48,249.37,30.04813666]
[1732204187614,30.04813666,249.44,249.35,30.04813666]
[1732204187810,30.04813666,249.44,249.33,30.04813666]
[1732204188130,30.04813666,249.44,249.35,30.04813666]
[1732204188626,30.04813666,249.44,249.33,30.04813666]
[1732204188929,30.04813666,249.46,249.35,30.04813666]
[1732204189426,30.04813666,249.48,249.38,30.04813666]
[1732204189825,30.04813666,249.46,249.36,30.04813666]
[1732204190126,30.04813666,249.42,249.3,30.04813666]
[1732204190331,30.04813666,249.36,249.26,30.04813666]
[1732204190505,4.5091,249.44,249.22,30.04813666]
[1732204190506,30.04813666,249.32,249.22,30.04813666]
[1732204190845,30.04813666,249.32,249.0,30.82013666]
[1732204190846,30.04813666,249.26,249.16,30.04813666]
[1732204191125,30.04813666,249.34,249.23,30.04813666]
[1732204191323,30.04813666,249.29,249.19,30.04813666]
[1732204191630,0.5,249.34,249.15,30.04813666]
[1732204191631,30.04813666,249.25,249.15,30.04813666]
[1732204191820,30.04813666,249.27,249.17,30.04813666]
[1732204192156,30.04813666,249.29,249.19,30.04813666]
[1732204192330,30.04813666,249.35,249.25,30.04813666]
[1732204193356,30.04813666,249.35,249.23,30.04813666]
[1732204193535,30.04813666,249.27,249.17,30.04813666]
[1732204193735,30.04813666,249.25,249.15,30.04813666]
[1732204193937,30.04813666,249.21,249.09,30.04813666]
[1732204194136,30.04813666,249.21,249.01,32.5911]
[1732204194137,30.04813666,249.11,249.0,0.772]
[1732204194337,30.04813666,249.11,249.01,30.04813666]
[1732204194631,30.04813666,249.15,249.05,30.04813666]
[1732204194831,30.04813666,249.17,249.05,30.04813666]
[1732204195044,30.04813666,249.25,249.13,30.04813666]
[1732204195253,42.8605,249.27,249.13,30.04813666]
[1732204195254,30.04813666,249.23,249.13,30.04813666]
[1732204195459,34.06063666,249.23,249.13,30.04813666]
[1732204196135,34.06013666,249.25,249.15,30.04813666]
[1732204196334,34.06013666,249.25,249.01,20.5]
[1732204196335,20.0,249.26,249.17,30.04813666]
[1732204196568,30.04813666,249.23,249.13,30.04813666]
[1732204196861,30.04813666,249.21,249.1,30.04813666]
[1732204197235,20.0,249.24,249.14,30.04813666]
[1732204197452,30.04813666,249.23,249.12,30.04813666]
[1732204197634,20.0,249.22,249.12,30.04813666]
[1732204197835,20.0,249.22,249.0,30.82013666]
[1732204197836,30.04813666,249.21,249.1,30.04813666]
[1732204198037,30.04813666,249.23,249.12,30.04813666]
[1732204198553,30.04813666,249.25,249.14,30.04813666]
[1732204198748,30.04813666,249.23,249.12,30.04813666]
[1732204198952,30.04813666,249.18,249.08,30.04813666]
[1732204199139,30.04813666,249.18,249.0,30.82013666]
[1732204199140,30.04813666,249.18,249.07,23.776884]
[1732204199346,30.04813666,249.16,249.06,30.04813666]
[1732204199551,34.06133666,249.18,249.06,30.04813666]
[1732204199856,30.04813666,249.16,249.06,30.04813666]
[1732204200250,30.04813666,249.16,249.04,30.04813666]
[1732204200457,30.04813666,249.14,249.04,30.04813666]
[1732204200847,30.04813666,249.16,249.06,30.04813666]
[1732204201168,30.04813666,249.14,249.04,30.04813666]
[1732204201338,30.04813666,249.14,249.0,0.772]